bitfinex-derivatives/quotes_ETHF0:USTF0_20250417
["timestamp","ask_amount","ask_price","bid_price","bid_amount"]
[1744857309658,1.6309,1587.3,1587.2,3.76226]
[1744857309858,5.7975,1587.4,1587.3,1.2601]
[1744857310059,5.7975,1587.4,1587.3,2.9483]
[1744857310468,7.4284,1587.4,1587.3,2.9483]
[1744857310663,8.68842,1587.4,1587.3,2.9483]
[1744857311166,8.68842,1587.4,1587.3,1.6882]
[1744857312160,8.68842,1587.4,1587.3,2.9483]
[1744857312462,7.4284,1587.4,1587.3,6.1561]
[1744857313373,8.68842,1587.4,1587.3,6.1561]
[1744857316468,7.4284,1587.4,1587.3,6.1561]
[1744857316669,3.2414,1587.4,1587.3,6.1561]
[1744857317470,4.50142,1587.4,1587.3,6.1561]
[1744857317669,1.26002,1587.4,1587.3,6.1561]
[1744857317966,5.447,1587.5,1587.3,6.1561]
[1744857318160,7.12164,1587.5,1587.4,1.6371]
[1744857318666,7.12164,1587.5,1587.3,3.2078]
[1744857318971,1.2601,1587.3,1587.2,1.6371]
[1744857319173,1.26018,1587.2,1587.1,5.75589062]
[1744857319372,6.31208,1587.2,1587.1,5.75589062]
[1744857319968,7.91078,1587.2,1587.1,5.75589062]
[1744857323076,1.26026,1587.1,1587.0,1.6517]
[1744857323273,2.90326,1587.1,1587.0,2.91204]
[1744857323474,5.0519,1587.2,1587.1,1.26026]
[1744857323670,4.187,1587.2,1587.1,2.93646]
[1744857324578,4.187,1587.2,1587.1,6.14426]
[1744857325175,3.764,1587.5,1587.1,9.884]
[1744857325480,3.764,1587.5,1587.4,1.26002]
[1744857325481,0.861,1587.5,1587.4,1.26002]
[1744857325680,109.1729,1587.6,1587.4,1.26002]
[1744857325975,109.1729,1587.6,1587.5,2.5618]
[1744857328274,13.0789,1587.6,1587.5,2.5618]
[1744857328773,1.26002,1587.4,1587.2,1.26011]
[1744857328974,1.26002,1587.4,1587.2,5.75589062]
[1744857329173,1.26002,1587.4,1587.3,1.2601]
[1744857329474,2.532,1587.4,1587.3,1.2601]
[1744857329678,2.532,1587.4,1587.3,2.9301]
[1744857329881,1.2601,1587.3,1587.2,5.75589062]
[1744857330087,10.3608,1587.3,1587.2,5.75589062]
[1744857330977,12.25099,1587.3,1586.9,8.36640005]
[1744857331173,1.26034,1587.0,1586.9,8.36640005]
[1744857332082,2.10164,1587.0,1586.9,8.36640005]
[1744857333779,2.10164,1587.0,1586.8,15.02228146]
[1744857333780,1.26041,1586.9,1586.8,2.5476]
[1744857333976,2.93471,1586.9,1586.8,2.5476]
[1744857334177,3.80591,1586.9,1586.8,2.5476]
[1744857341193,3.80591,1586.9,1586.7,10.22425062]
[1744857341194,1.26049,1586.8,1586.7,3.2078]
[1744857341494,1.26049,1586.8,1586.5,2.4859]
[1744857341495,1.26065,1586.6,1586.5,2.4859]
[1744857342185,3.75915,1586.6,1586.5,1.6666]
[1744857342387,6.3062915,1586.7,1586.5,2.92733]
[1744857342587,6.3062915,1586.7,1586.5,2.92727]
[1744857342788,6.3062915,1586.7,1586.6,1.6666]
[1744857345397,1.26073,1586.5,1586.4,3.2078]
[1744857345596,1.26089,1586.3,1586.2,2.5758]
[1744857346900,7.12335,1586.4,1586.2,3.83674]
[1744857347199,7.12335,1586.4,1586.3,1.6099]
[1744857347694,1.26089,1586.3,1586.2,0.8472]
[1744857347895,3.00949,1586.3,1586.2,2.4571]
[1744857348106,4.73089,1586.3,1586.2,2.4571]
[1744857351604,3.47,1586.3,1586.2,3.71807]
[1744857351903,4.73089,1586.3,1586.2,2.4571]
[1744857353103,1.26101,1586.2,1586.0,10.22477062]
[1744857353305,5.44705,1586.1,1586.0,5.75589062]
[1744857353499,1.26119,1586.0,1585.8,4.46905]
[1744857353694,3.458,1586.0,1585.9,1.26121]
[1744857354004,3.458,1586.0,1585.9,2.86441]
[1744857354005,2.5949,1586.0,1585.9,2.86441]
[1744857354302,4.187,1586.2,1586.0,1.26113]
[1744857354501,5.44802,1586.2,1586.0,3.68903]
[1744857355301,7.18252,1586.2,1586.0,3.68903]
[1744857355504,1.26105,1586.1,1586.0,3.68903]
[1744857356406,5.9215,1586.2,1586.0,3.68903]
[1744857356407,7.18253,1586.2,1586.0,3.68903]
[1744857356611,4.187,1586.2,1586.1,1.26105]
[1744857356812,4.187,1586.2,1586.1,3.84385]
[1744857357708,5.44797,1586.2,1586.1,3.84385]
[1744857358420,5.44797,1586.2,1586.1,2.5828]
[1744857358612,7.04177,1586.2,1586.1,2.5828]
[1744857359012,5.7808,1586.2,1586.1,3.84385]
[1744857359319,6.83285236,1586.5,1586.3,1.26089]
[1744857359320,4.187,1586.5,1586.3,1.26089]
[1744857359511,7.96166,1586.5,1586.4,0.8613]
[1744857359710,7.96166,1586.5,1586.4,2.5543]
[1744857360313,6.7009,1586.5,1586.4,3.81511]
[1744857361718,7.96163,1586.5,1586.4,3.81511]
[1744857361918,6.7009,1586.5,1586.4,3.81511]
[1744857362518,5.4570815,1586.7,1586.5,1.26068]
[1744857362817,7.98724295,1586.7,1586.6,1.6926]
[1744857363011,6.72661295,1586.7,1586.6,2.95325]
[1744857364213,4.18721295,1586.7,1586.6,2.95325]
[1744857364622,4.18721295,1586.7,1586.6,6.16105]
[1744857366423,0.00021295,1586.7,1586.6,6.16105]
[1744857367724,2.50291295,1586.7,1586.6,6.16105]
[1744857370427,0.83681295,1586.7,1586.6,6.16105]
[1744857370615,0.00021295,1586.7,1586.6,6.16105]
[1744857377426,0.00021295,1586.7,1586.6,4.46845]
[1744857377631,0.84951295,1586.7,1586.6,4.46845]
[1744857378831,2.56681295,1586.7,1586.6,6.09055]
[1744857382535,3.82738295,1586.7,1586.6,6.09055]
[1744857383435,2.56681295,1586.7,1586.6,6.09055]
[1744857386837,2.56681295,1586.7,1586.6,2.88275]
[1744857388332,1.71751295,1586.7,1586.6,6.09055]
[1744857388534,0.00021295,1586.7,1586.6,6.09055]
[1744857389233,1.26078295,1586.7,1586.6,6.09055]
[1744857389628,3.01978295,1586.7,1586.6,6.09055]
[1744857390140,1.75921295,1586.7,1586.6,6.09055]
[1744857390539,3.01978295,1586.7,1586.6,4.46845]
[1744857390734,3.01978295,1586.7,1586.6,3.2078]
[1744857390939,1.75921295,1586.7,1586.5,8.75335917]
[1744857391242,2.5837,1586.6,1586.5,8.75335917]
[1744857393847,0.8247,1586.6,1586.5,8.75335917]
[1744857394038,1.67071295,1586.7,1586.6,1.26065]
[1744857394344,1.67071295,1586.7,1586.6,2.85055]
[1744857395345,1.67071295,1586.7,1586.6,6.05835]
[1744857397032,2.93128295,1586.7,1586.6,4.7977]
[1744857397232,2.93128295,1586.7,1586.6,1.5899]
[1744857397436,1.26065,1586.6,1586.5,7.02579917]
[1744857397639,2.88885,1586.6,1586.5,7.02579917]
[1744857398140,2.88885,1586.6,1586.5,5.76512917]
[1744857398447,2.88885,1586.6,1586.5,7.02585917]
[1744857400649,1.6282,1586.6,1586.5,7.02585917]
[1744857400946,1.6282,1586.6,1586.5,8.72815917]
[1744857402139,2.88885,1586.6,1586.5,8.72815917]
[1744857402439,1.6282,1586.6,1586.5,2.97226855]
[1744857404742,2.88885,1586.6,1586.5,2.97226855]
[1744857405234,1.26084295,1586.7,1586.6,1.26065]
[1744857405448,1.26084295,1586.7,1586.6,3.00295]
[1744857406338,3.01824295,1586.7,1586.6,1.7423]
[1744857406847,1.26065,1586.6,1586.5,0.00923855]
[1744857407046,3.01805,1586.6,1586.5,0.00923855]
[1744857408250,3.01805,1586.6,1586.5,1.26996855]
[1744857408644,3.01805,1586.6,1586.5,2.95086855]
[1744857408851,3.01805,1586.6,1586.5,1.69013855]
[1744857409554,3.01805,1586.6,1586.5,2.95086855]
[1744857410453,1.7574,1586.6,1586.5,2.95086855]
[1744857410648,7.20305,1586.6,1586.5,0.00923855]
[1744857410854,7.20305,1586.6,1586.5,1.26996855]
[1744857411152,7.20305,1586.6,1586.5,0.00923855]
[1744857412345,5.9424,1586.6,1586.5,1.26996855]
[1744857412550,4.185,1586.6,1586.5,3.01146855]
[1744857412850,0.00021295,1586.7,1586.6,1.26065]
[1744857413049,0.00021295,1586.7,1586.6,7.00965]
[1744857415256,0.00021295,1586.7,1586.6,3.80185]
[1744857417659,0.00021295,1586.7,1586.6,7.00965]
[1744857421162,0.00021295,1586.7,1586.6,17.76554062]
[1744857421465,7.96271,1587.3,1587.1,1.26019]
[1744857421761,6.7026,1587.3,1587.0,1.26029]
[1744857422067,1.26029,1587.1,1586.9,12.72205062]
[1744857422362,4.58194,1587.0,1586.9,11.85815062]
[1744857422561,4.58194,1587.0,1586.9,8.96369062]
[1744857422762,8.76494,1587.0,1586.9,8.96369062]
[1744857423565,7.5046,1587.0,1586.9,10.22410062]
[1744857423756,6.7026,1587.0,1586.9,10.22410062]
[1744857423953,4.183,1587.0,1586.9,10.22410062]
[1744857424162,0.0094515,1587.1,1587.0,1.26034]
[1744857424363,0.0094515,1587.1,1587.0,3.71214]
[1744857424763,0.0094515,1587.1,1587.0,4.52004]
[1744857425164,1.6075515,1587.1,1587.0,3.70604]
[1744857426566,0.0094515,1587.1,1587.0,3.70604]
[1744857427565,1.6438515,1587.1,1587.0,3.70604]
[1744857429766,0.0094515,1587.1,1587.0,3.70604]
[1744857431266,8.6936,1587.5,1587.3,1.26002]
[1744857431465,1.26002,1587.4,1587.3,1.26002]
[1744857431662,2.89372,1587.4,1587.3,2.95872]
[1744857431862,1.6337,1587.4,1587.3,3.82402]
[1744857433262,4.9859,1587.5,1587.4,1.26002]
[1744857433462,4.182,1587.5,1587.4,3.87982]
[1744857433765,1.7359,1587.6,1587.5,1.25994]
[1744857433960,1.7359,1587.6,1587.5,3.01704]
[1744857435971,2.99576,1587.6,1587.5,1.7571]
[1744857436270,2.99576,1587.6,1587.5,3.01704]
[1744857436871,1.25994,1587.5,1587.4,5.33046]
[1744857437072,2.94414,1587.5,1587.4,4.46776]
[1744857437274,1.6842,1587.5,1587.4,4.46776]
[1744857439071,2.94414,1587.5,1587.4,4.46776]
[1744857439268,1.6842,1587.5,1587.4,4.46782]
[1744857439465,1.6842,1587.5,1587.4,6.16832]
[1744857439765,2.94414,1587.5,1587.4,4.46782]
[1744857440473,1.6842,1587.5,1587.4,4.46782]
[1744857441579,1.6842,1587.5,1587.4,6.13542]
[1744857442573,2.94414,1587.5,1587.4,3.2078]
[1744857442773,2.94414,1587.5,1587.4,4.46782]
[1744857443374,1.6842,1587.5,1587.4,4.46782]
[1744857443576,1.2693615,1587.6,1587.5,1.25994]
[1744857443577,0.0094515,1587.6,1587.5,1.25994]
[1744857443871,0.0094515,1587.6,1587.5,3.73764]
[1744857446175,1.6540515,1587.6,1587.5,3.73764]
[1744857446878,1.6540515,1587.6,1587.5,1.6676]
[1744857447577,1.6540515,1587.6,1587.5,2.92754]
[1744857450672,0.0094515,1587.6,1587.5,2.92754]
[1744857451567,0.0094515,1587.6,1587.5,1.6676]
[1744857451779,2.5561515,1587.6,1587.5,2.92754]
[1744857451975,3.8160115,1587.6,1587.5,1.6676]
[1744857452578,2.5561515,1587.6,1587.5,2.92754]
[1744857457082,2.5561515,1587.6,1587.5,1.25994]
[1744857460286,2.5561515,1587.6,1587.5,2.97124]
[1744857460987,0.0094515,1587.6,1587.5,2.97124]
[1744857462281,1.6317515,1587.6,1587.5,2.97124]
[1744857462991,0.0094515,1587.6,1587.5,2.97124]
[1744857470494,1.2693115,1587.6,1587.5,1.7113]
[1744857470701,3.0214115,1587.6,1587.5,1.7113]
[1744857471199,1.7615515,1587.6,1587.5,2.97124]
[1744857473306,3.0214115,1587.6,1587.5,2.97124]
[1744857473611,3.0214115,1587.6,1587.4,3.2078]
[1744857473807,1.6179,1587.5,1587.4,6.10552]
[1744857475408,1.6179,1587.5,1587.4,4.46782]
[1744857475710,2.4631,1587.5,1587.4,4.46782]
[1744857475902,2.4631,1587.5,1587.4,6.15832]
[1744857477008,2.4631,1587.5,1587.4,3.2078]
[1744857477009,3.72304,1587.5,1587.4,3.2078]
[1744857477215,1.26002,1587.4,1587.3,0.0094515]
[1744857477404,3.76522,1587.4,1587.3,0.0094515]
[1744857480411,2.5052,1587.4,1587.3,1.2695515]
[1744857480710,4.177,1587.5,1587.4,1.26002]
[1744857481006,3.8279615,1587.6,1587.4,2.93932]
[1744857481403,1.25994,1587.5,1587.4,4.61622]
[1744857483113,1.25994,1587.5,1587.4,3.3562]
[1744857483312,2.99714,1587.5,1587.4,3.3562]
[1744857483513,0.0094515,1587.6,1587.5,1.25994]
[1744857483702,0.0094515,1587.6,1587.5,6.14464]
[1744857484111,1.2693115,1587.6,1587.5,4.8847]
[1744857484304,2.9900115,1587.6,1587.5,4.8847]
[1744857486514,2.9900115,1587.6,1587.5,3.2078]
[1744857487218,2.9900115,1587.6,1587.5,4.46774]
[1744857487413,2.9900115,1587.6,1587.5,3.2078]
[1744857488818,2.9900115,1587.6,1587.5,4.46774]
[1744857491018,2.9900115,1587.6,1587.5,3.2078]
[1744857491219,1.25994,1587.5,1587.3,4.4773215]
[1744857491423,1.26002,1587.4,1587.3,0.0094515]
[1744857491713,2.10702,1587.4,1587.3,0.0094515]
[1744857492020,7.97052,1587.4,1587.3,0.0094515]
[1744857492223,12.97052,1587.4,1587.3,0.0094515]
[1744857493510,7.97052,1587.4,1587.3,0.0094515]
[1744857493911,7.97052,1587.4,1587.3,3.7316515]
[1744857494214,7.97052,1587.4,1587.3,2.4715515]
[1744857494519,7.97052,1587.4,1587.3,0.0094515]
[1744857500030,6.7105,1587.4,1587.3,1.2695515]
[1744857500222,4.178,1587.4,1587.3,3.8098515]
[1744857500424,4.178,1587.4,1587.3,4.6777515]
[1744857502927,0.0094515,1587.6,1587.5,1.25994]
[1744857503622,1.2693115,1587.6,1587.5,2.96014]
[1744857504328,0.0094515,1587.6,1587.5,3.81734]
[1744857506426,1.25994,1587.5,1587.4,3.2078]
[1744857506620,3.66684,1587.5,1587.4,1.26002]
[1744857506824,2.4069,1587.5,1587.4,1.26002]
[1744857507024,2.4069,1587.5,1587.4,2.86282]
[1744857511934,3.66684,1587.5,1587.4,2.86282]
[1744857512130,1.26002,1587.4,1587.3,2.0743115]
[1744857512329,3.75352,1587.4,1587.3,2.0743115]
[1744857513237,2.4935,1587.4,1587.3,0.8142515]
[1744857513535,2.4935,1587.4,1587.3,3.6649515]
[1744857513937,0.836,1587.4,1587.3,3.6649515]
[1744857517441,7.90532,1587.4,1587.3,0.0094515]
[1744857521044,0.7975,1587.5,1587.4,1.26002]
[1744857521246,1.2693815,1587.6,1587.5,1.25994]
[1744857521436,1.2693815,1587.6,1587.5,2.05684]
[1744857521636,1.2693815,1587.6,1587.5,4.63124]
[1744857522145,1.2693815,1587.6,1587.5,3.3713]
[1744857522546,2.9726815,1587.6,1587.5,3.3713]
[1744857523047,3.8380815,1587.6,1587.5,3.3713]
[1744857523848,3.8380815,1587.6,1587.5,2.5744]
[1744857524147,3.8380815,1587.6,1587.5,1.7054]
[1744857524750,1.25994,1587.5,1587.4,5.32085]
[1744857524941,2.85414,1587.5,1587.4,7.00155]
[1744857528947,2.85414,1587.5,1587.4,5.7416]
[1744857529952,2.85414,1587.5,1587.4,7.00162]
[1744857534452,2.85414,1587.5,1587.4,5.7416]
[1744857535955,2.85414,1587.5,1587.4,2.5338]
[1744857537659,2.85414,1587.5,1587.4,3.79382]
[1744857538262,2.85414,1587.5,1587.4,2.5338]
[1744857538962,2.85414,1587.5,1587.4,3.79382]
[1744857539162,1.5942,1587.5,1587.4,3.79382]
[1744857539662,2.1347815,1587.6,1587.4,3.79382]
[1744857539862,3.8633815,1587.6,1587.5,1.6169]
[1744857542869,3.8633815,1587.6,1587.5,2.87684]
[1744857543066,2.9979815,1587.6,1587.5,2.87684]
[1744857543270,2.9979815,1587.6,1587.5,2.4426]
[1744857543573,1.2693815,1587.6,1587.5,3.70254]
[1744857545569,0.0094515,1587.6,1587.5,3.70254]
[1744857546775,1.2693115,1587.6,1587.5,3.70254]
[1744857546974,1.2693115,1587.6,1587.5,2.4426]
[1744857547369,2.9262115,1587.6,1587.5,2.4426]
[1744857547667,2.9262115,1587.6,1587.5,1.6169]
[1744857547668,4.5995115,1587.6,1587.5,1.6169]
[1744857550073,8.7735115,1587.6,1587.5,1.6169]
[1744857551369,8.7735115,1587.6,1587.5,2.87684]
[1744857552574,8.7735115,1587.6,1587.5,1.6169]
[1744857555175,8.7735115,1587.6,1587.5,2.87684]
[1744857559778,4.1834515,1587.6,1587.5,2.87684]
[1744857560079,0.0094515,1587.6,1587.5,2.87684]
[1744857560480,0.0094515,1587.6,1587.5,8.63273062]
[1744857560782,7.3818,1588.0,1587.6,3.14963]
[1744857560973,8.64138,1588.0,1587.6,15.40292062]
[1744857561180,8.64138,1588.0,1587.8,1.25967]
[1744857561181,1.25962,1587.9,1587.8,1.25967]
[1744857561380,8.6414,1588.0,1587.8,1.25967]
[1744857561581,10.3579,1588.0,1587.8,2.08337]
[1744857562684,10.3579,1588.0,1587.9,2.87892]
[1744857563482,10.3579,1588.0,1587.9,1.6193]
[1744857566887,1.25962,1587.9,1587.8,2.0834]
[1744857567084,3.81632,1587.9,1587.8,2.0834]
[1744857569488,2.5567,1587.9,1587.8,2.0834]
[1744857569684,5.4336,1588.0,1587.9,1.25962]
[1744857569889,5.4336,1588.0,1587.9,2.97012]
[1744857571787,4.174,1588.0,1587.9,2.97012]
[1744857571987,2.4390515,1588.1,1588.0,1.25954]
[1744857572178,2.4390515,1588.1,1588.0,4.63464]
[1744857572379,0.8089515,1588.1,1588.0,4.63464]
[1744857572586,0.0094515,1588.1,1588.0,4.63464]
[1744857573894,0.0094515,1588.1,1588.0,7.84244]
[1744857574090,1.25929,1588.4,1588.2,1.25938]
[1744857574493,2.93439,1588.4,1588.3,3.8149]
[1744857574795,1.6751,1588.4,1588.3,3.8149]
[1744857574993,5.0368,1588.5,1588.4,1.25922]
[1744857575294,6.7119,1588.5,1588.4,2.94862]
[1744857575495,7.97105,1588.5,1588.4,1.6894]
[1744857575693,7.97105,1588.5,1588.4,2.94862]
[1744857575894,7.97105,1588.5,1588.4,1.6894]
[1744857577388,7.97105,1588.5,1588.4,2.94862]
[1744857578293,7.97105,1588.5,1588.4,1.6894]
[1744857578793,1.25922,1588.4,1588.3,1.7008]
[1744857578995,1.6092,1588.4,1588.3,4.628]
[1744857583896,1.6092,1588.4,1588.3,2.5341]
[1744857583897,2.86842,1588.4,1588.3,2.5341]
[1744857584098,1.2593,1588.3,1588.2,4.4765715]
[1744857584306,2.5248,1588.3,1588.2,4.4765715]
[1744857585995,3.7841,1588.3,1588.2,4.4765715]
[1744857586187,3.7841,1588.3,1588.2,0.0094515]
[1744857586587,3.14873,1588.1,1587.6,14.12229067]
[1744857586895,1.25962,1587.9,1587.7,1.25976]
[1744857587098,2.4805,1587.8,1587.7,1.25976]
[1744857587400,2.4805,1587.8,1587.7,2.91006]
[1744857587797,0.8275,1587.8,1587.7,2.91006]
[1744857588001,1.7508,1587.9,1587.8,1.2597]
[1744857588201,1.7508,1587.9,1587.8,3.843]
[1744857588501,1.25962,1587.9,1587.8,2.5833]
[1744857588701,3.01042,1587.9,1587.8,2.5833]
[1744857589699,1.2597,1587.8,1587.6,12.84344155]
[1744857590004,1.2597,1587.8,1587.6,4.4771115]
[1744857590005,3.4538,1587.7,1587.6,4.4771115]
[1744857590202,4.71358,1587.7,1587.6,3.2172515]
[1744857590397,3.4538,1587.7,1587.6,4.4771115]
[1744857591303,3.4538,1587.7,1587.6,1.2693115]
[1744857591504,1.25997,1587.5,1587.3,7.01595062]
[1744857591706,2.07402,1587.4,1587.2,7.00652]
[1744857591893,7.96312,1587.4,1587.2,7.00652]
[1744857592098,2.9782,1587.3,1587.2,2.5386]
[1744857592310,1.26018,1587.2,1587.1,5.75589062]
[1744857592604,3.79828,1587.2,1587.1,5.75589062]
[1744857593606,1.26026,1587.1,1587.0,0.0094515]
[1744857593805,7.14936,1587.1,1587.0,0.0094515]
[1744857594405,10.35716,1587.1,1587.0,0.0094515]
[1744857594802,15.35716,1587.1,1587.0,0.0094515]
[1744857595010,1.26041,1586.9,1586.8,8.36640005]
[1744857595201,4.46821,1586.9,1586.8,8.36640005]
[1744857595507,9.46821,1586.9,1586.8,8.36640005]
[1744857595708,11.17621,1586.9,1586.8,8.36640005]
[1744857596005,1.2606,1586.7,1586.5,2.95783]
[1744857596208,4.172,1586.6,1586.5,2.95783]
[1744857596403,5.88,1586.6,1586.5,2.95783]
[1744857598116,4.172,1586.6,1586.5,2.95783]
[1744857598411,1.6899,1586.9,1586.5,6.6971]
[1744857598607,4.17,1586.8,1586.7,1.26057]
[1744857598801,4.17,1586.8,1586.7,2.85937]
[1744857599001,1.6899,1586.9,1586.8,1.26049]
[1744857599201,4.17,1587.1,1587.0,1.26031]
[1744857599805,5.43026,1587.1,1586.9,2.85916]
[1744857600012,5.8599,1587.1,1586.9,2.85916]
[1744857600212,5.8599,1587.1,1587.0,1.7402]
[1744857600916,7.12016,1587.1,1587.0,1.7402]
[1744857601212,1.26039,1587.0,1586.8,1.26049]
[1744857601411,1.7566,1587.0,1586.9,1.26041]
[1744857601810,5.8429,1587.1,1587.0,1.26034]
[1744857602007,7.5995,1587.1,1587.0,1.26034]
[1744857602209,6.7456,1587.1,1587.0,1.26034]
[1744857602503,6.7456,1587.1,1586.9,3.00055]
[1744857602504,8.00588,1587.1,1586.9,3.00055]
[1744857602709,1.26044,1586.9,1586.7,7.83041062]
[1744857603016,7.18809,1586.8,1586.7,5.75589062]
[1744857603210,5.9276,1586.8,1586.7,7.01646062]
[1744857603513,4.171,1586.8,1586.7,8.70636062]
[1744857603903,5.43149,1586.8,1586.7,5.75589062]
[1744857604099,5.8048,1586.8,1586.7,7.01646062]
[1744857604306,7.06529,1586.8,1586.7,5.75589062]
[1744857604613,7.06529,1586.8,1586.6,4.46841]
[1744857604810,2.89437,1586.7,1586.6,3.2078]
[1744857605021,3.76507,1586.7,1586.5,1.26068]
[1744857605209,1.6338,1586.6,1586.5,1.26068]
[1744857605815,1.6338,1586.6,1586.5,2.95058]
[1744857606418,0.8707,1586.7,1586.6,1.26065]
[1744857606715,0.8426,1587.0,1586.6,1.7125]
[1744857606916,0.8328,1587.1,1586.8,3.2078]
[1744857607116,0.8328,1587.1,1587.0,1.26034]
[1744857607302,100.227,1587.2,1587.1,1.26026]
[1744857607908,101.48718,1587.2,1587.1,1.26026]
[1744857608108,103.23208,1587.2,1587.0,1.26029]
[1744857608417,103.23208,1587.2,1587.1,1.26026]
[1744857608807,103.23208,1587.2,1587.0,1.26029]
[1744857609011,1.7449,1587.1,1587.0,1.26029]
[1744857609516,100.227,1587.2,1587.1,1.26026]
[1744857609811,101.9117,1587.2,1587.1,1.26026]
[1744857610610,97.7407,1587.2,1587.1,2.89696]
[1744857610813,4.1804515,1587.3,1587.2,1.26018]
[1744857611017,4.1804515,1587.3,1587.2,2.89688]
[1744857611911,5.4405515,1587.3,1587.2,1.6367]
[1744857612214,7.1252515,1587.3,1587.2,1.6367]
[1744857612608,5.8651515,1587.3,1587.2,2.89688]
[1744857612810,4.1804515,1587.3,1587.2,2.89688]
[1744857615020,5.4405515,1587.3,1587.2,1.6367]
[1744857615221,1.26018,1587.2,1587.1,2.93231]
[1744857615518,2.85488,1587.2,1587.1,2.5033]
[1744857615714,2.4014,1587.2,1587.0,3.2078]
[1744857616012,1.5947,1587.1,1587.0,6.17281]
[1744857616207,2.85496,1587.1,1587.0,3.2078]
[1744857616412,2.85496,1587.1,1587.0,4.46814]
[1744857617019,2.85496,1587.1,1587.0,6.17284]
[1744857617820,1.5947,1587.1,1587.0,6.17284]
[1744857619020,2.88701,1587.2,1587.1,1.26026]
[1744857619021,0.8067,1587.2,1587.1,1.26026]
[1744857619224,2.06688,1587.2,1587.1,1.26026]
[1744857619517,3.73388,1587.2,1587.1,2.89316]
[1744857619720,2.4737,1587.2,1587.1,2.89316]
[1744857620622,4.1804515,1587.3,1587.2,1.26018]
[1744857620822,4.1804515,1587.3,1587.2,2.89308]
[1744857621423,5.4405515,1587.3,1587.2,2.89308]
[1744857621719,7.0958515,1587.3,1587.2,1.6329]
[1744857623428,7.0958515,1587.3,1587.2,2.89308]
[1744857624127,5.8357515,1587.3,1587.2,2.89308]
[1744857624327,7.0958515,1587.3,1587.2,2.89308]
[1744857624527,7.0958515,1587.3,1587.2,1.6329]
[1744857625128,5.8357515,1587.3,1587.2,2.89308]
[1744857625424,0.0094515,1587.3,1587.2,2.89308]
[1744857625631,0.0094515,1587.3,1587.2,11.10088]
[1744857625830,0.0094515,1587.3,1587.2,7.89308]
[1744857626130,0.0094515,1587.3,1587.2,11.10088]
[1744857627431,0.0094515,1587.3,1587.2,6.10088]
[1744857631032,0.0094515,1587.3,1587.2,11.85677062]
[1744857633638,0.0094515,1587.3,1587.2,8.64897062]
[1744857633832,1.5984515,1587.3,1587.2,8.64897062]
[1744857636534,1.5984515,1587.3,1587.2,11.85677062]
[1744857636934,1.5984515,1587.3,1587.2,6.10088]
[1744857638429,0.0094515,1587.3,1587.2,6.10088]
[1744857639630,0.0094515,1587.3,1587.2,11.10088]
[1744857639826,9.9189,1587.8,1587.7,1.25978]
[1744857640031,9.0779,1587.8,1587.7,1.25978]
[1744857640235,7.3768,1587.8,1587.7,1.25978]
[1744857640739,2.5631515,1587.9,1587.7,1.25978]
[1744857640938,0.0094515,1587.9,1587.8,2.8602]
[1744857641434,0.0094515,1587.9,1587.8,8.61609062]
[1744857642734,1.5e-06,1587.9,1587.8,8.61609062]
[1744857643840,1.5e-06,1587.9,1587.8,12.78509062]
[1744857644035,1.5e-06,1587.9,1587.8,17.78509062]
[1744857644229,4.169,1588.6,1588.5,1.25915]
[1744857644737,1.7222,1588.6,1588.5,1.25915]
[1744857645134,1.7222,1588.6,1588.5,2.96655]
[1744857646344,0.0094515,1588.7,1588.6,1.25907]
[1744857646537,0.0094515,1588.7,1588.6,2.99217]
[1744857647044,1.6921515,1588.7,1588.6,6.19997]
[1744857648337,0.0094515,1588.7,1588.6,6.19997]
[1744857649442,1.5e-06,1588.7,1588.6,11.95586062]
[1744857649640,1.5e-06,1588.7,1588.6,12.81146062]
[1744857649837,1.5e-06,1588.7,1588.6,17.81146062]
[1744857650536,1.5e-06,1588.7,1588.6,18.30863104]
[1744857652349,1.7417,1589.2,1589.1,1.25867]
[1744857653543,8.00031,1589.2,1589.0,4.46649]
[1744857653748,0.8131,1589.1,1589.0,4.46649]
[1744857654040,3.74477,1589.1,1589.0,3.2078]
[1744857654246,8.74477,1589.1,1588.9,7.01469062]
[1744857654445,1.673,1589.0,1588.9,7.01469062]
[1744857656346,0.8131,1589.1,1589.0,1.25875]
[1744857656646,0.8131,1589.1,1589.0,2.84985]
[1744857657445,1.727,1589.2,1589.1,1.25867]
[1744857657646,1.727,1589.2,1589.1,6.05757]
[1744857658946,0.8838515,1589.3,1589.2,1.25859]
[1744857659148,0.8838515,1589.3,1589.2,2.96299]
[1744857660249,0.0094515,1589.3,1589.2,2.96299]
[1744857660451,0.84,1589.7,1589.6,1.25827]
[1744857660653,2.4456,1589.7,1589.6,1.25827]
[1744857661854,3.70379,1589.7,1589.5,1.2677615]
[1744857662150,1.7206,1589.6,1589.5,1.2678015]
[1744857662948,7.97887,1589.6,1589.5,0.0094515]
[1744857663148,11.18667,1589.6,1589.5,0.0094515]
[1744857664752,1.25873,1589.1,1588.9,4.4666]
[1744857665054,2.06985,1589.0,1588.8,1.25885]
[1744857665252,1.25895,1588.8,1588.6,1.25905]
[1744857665452,2.90081,1588.7,1588.4,1.25916]
[1744857665648,1.6418,1588.7,1588.5,1.2591]
[1744857665849,0.8111,1588.6,1588.5,1.2591]
[1744857666250,2.4529,1588.6,1588.5,1.2591]
[1744857666749,3.71197,1588.6,1588.4,0.0094515]
[1744857666947,3.71197,1588.6,1588.4,1.2686415]
[1744857667151,1.25915,1588.5,1588.4,0.0094515]
[1744857667349,2.91355,1588.5,1588.4,0.0094515]
[1744857667551,11.12135,1588.5,1588.4,0.0094515]
[1744857667957,1.25946,1588.1,1588.0,8.36640005]
[1744857668150,5.42346,1588.1,1588.0,8.36640005]
[1744857668458,10.42346,1588.1,1587.8,1.25966]
[1744857668657,1.6544,1588.0,1587.8,1.25966]
[1744857668856,1.6544,1588.0,1587.9,1.25962]